bitfinex/quotes_BTCUSD_20251212
["timestamp","ask_amount","ask_price","bid_price","bid_amount"]
[1765557786108,1.82924077,89620.0,89619.0,0.0136]
[1765557786310,0.22318688,89611.0,89585.0,0.04795769]
[1765557786507,1.55708222,89601.0,89585.0,0.04795769]
[1765557786631,1.66390047,89601.0,89600.0,0.10058613]
[1765557786830,1.6463407,89601.0,89600.0,0.10058613]
[1765557787046,1.68951113,89601.0,89600.0,0.10058613]
[1765557787247,1.74054401,89601.0,89600.0,0.10058613]
[1765557787659,1.55710713,89591.0,89585.0,0.04795769]
[1765557787862,1.62375961,89591.0,89585.0,0.04795769]
[1765557788097,1.64933412,89591.0,89585.0,0.04795769]
[1765557788318,1.75984174,89591.0,89585.0,0.04795769]
[1765557788548,1.73455131,89591.0,89585.0,0.04795769]
[1765557788751,1.80142167,89591.0,89585.0,0.04795769]
[1765557789383,1.77772174,89591.0,89585.0,0.04795769]
[1765557789809,1.6949232,89591.0,89585.0,0.04795769]
[1765557790096,1.67121412,89591.0,89585.0,0.04795769]
[1765557790437,1.58941959,89586.0,89585.0,0.01464098]
[1765557790645,0.5996885,89586.0,89585.0,0.01464098]
[1765557790849,0.80346891,89586.0,89585.0,0.01464098]
[1765557791051,0.3927,89586.0,89585.0,0.01464098]
[1765557791559,0.3011,89586.0,89585.0,0.01464098]
[1765557791772,0.01116208,89589.0,89585.0,0.2378917]
[1765557792005,0.00038808,89591.0,89589.0,0.22324087]
[1765557792231,0.00038808,89591.0,89587.0,0.01116233]
[1765557792499,0.22324875,89587.0,89585.0,0.01464098]
[1765557792625,1.08157,89586.0,89585.0,0.01464098]
[1765557792830,0.12474043,89586.0,89585.0,0.01464098]
[1765557793032,1.12474043,89586.0,89585.0,0.01464098]
[1765557793237,1.41544043,89586.0,89585.0,0.01464098]
[1765557793464,1.3332959,89586.0,89585.0,0.01464098]
[1765557793642,1.42573633,89586.0,89585.0,0.01464098]
[1765557793847,1.42573633,89586.0,89585.0,0.01564098]
[1765557794490,1.53624395,89586.0,89585.0,0.01564098]
[1765557794693,0.0102959,89586.0,89585.0,0.01564098]
[1765557794936,0.00038808,89591.0,89585.0,0.01564098]
[1765557795127,0.04355851,89591.0,89586.0,0.22324837]
[1765557795270,0.05472034,89591.0,89585.0,0.23889258]
[1765557795475,0.01116196,89590.0,89587.0,0.01116233]
[1765557795677,0.06641626,89590.0,89586.0,0.01116245]
[1765557795882,0.0552543,89590.0,89587.0,0.2344074]
[1765557796089,0.04355851,89591.0,89590.0,0.2232392]
[1765557796447,0.00138808,89591.0,89590.0,0.2409192]
[1765557797074,0.00038808,89591.0,89590.0,0.2585992]
[1765557797464,0.00038808,89591.0,89590.0,0.3027872]
[1765557797672,0.00038808,89591.0,89590.0,0.41391612]
[1765557797886,0.23345942,89630.0,89622.0,0.01115797]
[1765557798090,0.01115672,89632.0,89629.0,0.0111571]
[1765557798331,0.01032439,89636.0,89633.0,0.0111566]
[1765557798517,0.00099999,89630.0,89627.0,0.01115735]
[1765557798691,0.00011647,89630.0,89629.0,0.0111571]
[1765557799134,0.00011647,89630.0,89629.0,0.09986508]
[1765557799336,0.00011647,89630.0,89629.0,0.0111571]
[1765557799716,0.00011647,89630.0,89625.0,0.0111576]
[1765557799717,0.01115822,89620.0,89616.0,0.01115872]
[1765557799944,0.01115847,89618.0,89613.0,0.01115909]
[1765557800147,0.01115847,89618.0,89615.0,0.01115884]
[1765557800363,0.01115847,89618.0,89614.0,0.01115897]
[1765557800576,0.00099999,89620.0,89616.0,0.01115872]
[1765557800781,0.00099999,89620.0,89618.0,0.22316818]
[1765557801212,0.01215821,89620.0,89617.0,0.01115859]
[1765557801363,0.01115797,89622.0,89618.0,0.01115847]
[1765557801571,0.01115735,89627.0,89621.0,0.01115809]
[1765557801792,0.01115834,89619.0,89616.0,0.01115872]
[1765557801997,0.22315949,89622.0,89618.0,0.003]
[1765557801998,0.01115797,89622.0,89618.0,0.003]
[1765557802234,0.01115797,89622.0,89618.0,0.001]
[1765557802403,0.22316548,89620.0,89618.0,0.001]
[1765557802583,0.22477548,89620.0,89618.0,0.003]
[1765557802791,1.15903844,89619.0,89618.0,0.003]
[1765557802994,1.43137043,89619.0,89618.0,0.001]
[1765557803213,0.0111622,89588.0,89585.0,0.01464098]
[1765557803566,0.01116009,89605.0,89597.0,0.01116108]
[1765557803743,0.01116009,89605.0,89600.0,0.01116071]
[1765557803942,0.01116071,89600.0,89595.0,0.01116133]
[1765557804225,0.01116083,89599.0,89595.0,0.01116133]
[1765557804461,0.01116071,89600.0,89597.0,0.01116108]
[1765557804657,0.01116034,89603.0,89597.0,0.01116108]
[1765557804896,0.01116058,89601.0,89595.0,0.01127709]
[1765557805093,0.01116096,89598.0,89595.0,5.576e-05]
[1765557805222,0.23438022,89598.0,89595.0,5.576e-05]
[1765557805432,0.00161,89598.0,89595.0,0.23644353]
[1765557805627,0.00161,89598.0,89595.0,0.23444353]
[1765557805837,0.01115996,89606.0,89601.0,0.01116058]
[1765557806036,0.01116046,89602.0,89598.0,0.22321926]
[1765557806247,0.01116046,89602.0,89599.0,0.01116083]
[1765557806447,0.00161,89606.0,89604.0,0.22320324]
[1765557806845,0.01788,89616.0,89611.0,0.01115934]
[1765557806846,0.01115884,89615.0,89611.0,0.01115934]
[1765557807046,0.01115859,89617.0,89611.0,0.01115934]
[1765557807246,0.01115859,89617.0,89612.0,0.01115921]
[1765557807451,0.01115884,89615.0,89612.0,0.01115921]
[1765557807664,0.01115834,89619.0,89615.0,0.23433556]
[1765557808001,0.01115772,89624.0,89618.0,0.01115847]
[1765557808164,0.25,89650.0,89615.0,0.01115884]
[1765557808165,0.01115685,89631.0,89625.0,0.22315202]
[1765557808342,0.01115523,89644.0,89639.0,0.01115585]
[1765557808548,0.01115536,89643.0,89639.0,0.01115585]
[1765557808751,0.01115399,89654.0,89648.0,0.01115473]
[1765557808976,0.01115374,89656.0,89652.0,0.01115424]
[1765557809179,0.00099999,89660.0,89649.0,0.23424478]
[1765557809180,0.01115287,89663.0,89655.0,0.22307735]
[1765557809378,0.01115287,89663.0,89654.0,0.01115399]
[1765557809379,0.01115374,89656.0,89651.0,0.01115436]
[1765557809737,0.01115548,89642.0,89639.0,0.001]
[1765557809860,1.51381468,89640.0,89639.0,0.001]
[1765557810060,1.59843106,89640.0,89639.0,0.001]
[1765557810262,1.64694106,89640.0,89639.0,0.001]
[1765557810670,1.62165063,89640.0,89639.0,0.001]
[1765557810848,0.01115859,89617.0,89614.0,0.01115897]
[1765557811047,0.01115859,89617.0,89613.0,0.01115909]
[1765557811263,0.00099999,89620.0,89617.0,0.01115859]
[1765557811468,0.00099999,89620.0,89611.0,0.01702]
[1765557811469,0.0111571,89629.0,89626.0,0.01115747]
[1765557811715,0.0111571,89629.0,89625.0,0.0111576]
[1765557811947,0.01115722,89628.0,89625.0,0.0111576]
[1765557812117,0.01115685,89631.0,89627.0,0.01115735]
[1765557812289,0.0111571,89629.0,89625.0,0.0111576]
[1765557812561,0.0111571,89629.0,89624.0,0.01115772]
[1765557812562,0.01115722,89628.0,89624.0,0.01115772]
[1765557812755,0.01115722,89628.0,89625.0,0.0111576]
[1765557813134,0.01115772,89624.0,89618.0,0.01115847]
[1765557813254,0.01115772,89624.0,89620.0,0.01115822]
[1765557813456,0.0111576,89625.0,89620.0,0.01115822]
[1765557813666,0.00099999,89630.0,89627.0,0.01115735]
[1765557813869,0.00161,89640.0,89636.0,0.01115623]
[1765557814104,0.0111561,89637.0,89632.0,0.01115672]
[1765557814644,0.00172648,89640.0,89638.0,0.22311776]
[1765557814859,0.00172648,89640.0,89637.0,0.0111561]
[1765557814860,0.00011648,89640.0,89639.0,0.01625]
[1765557815066,0.00011648,89640.0,89636.0,0.23428086]
[1765557815067,0.01127221,89640.0,89636.0,0.01115623]
[1765557815279,0.00011648,89640.0,89637.0,0.0111561]
[1765557815493,0.00011648,89640.0,89637.0,0.23427719]
[1765557815714,0.00011648,89640.0,89639.0,0.01625]
[1765557815937,0.00011648,89640.0,89639.0,0.002]
[1765557816392,0.00011648,89640.0,89639.0,0.01813]
[1765557816588,0.00011648,89640.0,89639.0,0.03438]
[1765557816800,0.00011648,89640.0,89639.0,0.15362108]
[1765557817220,0.00011648,89640.0,89639.0,0.10843308]
[1765557817426,0.00011648,89640.0,89639.0,0.20363947]
[1765557817866,0.00011648,89640.0,89639.0,0.20163947]
[1765557818282,0.00011648,89640.0,89639.0,0.20663947]
[1765557818500,0.00111648,89640.0,89639.0,0.21263947]
[1765557818736,0.01115113,89677.0,89674.0,0.0111515]
[1765557818948,0.01115125,89676.0,89672.0,0.01115175]
[1765557819158,0.00011665,89677.0,89674.0,0.23418158]
[1765557819362,0.00011665,89677.0,89676.0,0.01577]
[1765557819781,0.00011665,89677.0,89676.0,0.15358115]
[1765557821303,0.00011665,89677.0,89676.0,0.15758115]
[1765557822175,0.00011665,89677.0,89676.0,0.11239315]
[1765557822563,0.00011665,89677.0,89676.0,0.11739315]
[1765557822817,0.00111665,89677.0,89676.0,0.11539315]
[1765557823020,0.00111665,89677.0,89676.0,0.11739315]
[1765557823654,0.00011665,89677.0,89676.0,0.15358115]
[1765557823855,0.00111665,89677.0,89676.0,0.15658115]
[1765557824065,0.00111665,89677.0,89676.0,0.15758115]
[1765557824272,0.00011665,89677.0,89676.0,0.15458115]
[1765557824500,0.00011665,89677.0,89676.0,0.15358115]
[1765557824706,0.00011665,89677.0,89676.0,0.15658115]
[1765557824915,0.00011665,89677.0,89676.0,0.11139315]
[1765557825117,0.00011665,89677.0,89676.0,0.15858115]
[1765557825118,0.00111665,89677.0,89676.0,0.15858115]
[1765557825531,0.00011665,89677.0,89676.0,0.07909351]
[1765557825759,0.00011665,89677.0,89676.0,0.12228151]
[1765557825978,0.00011665,89677.0,89676.0,0.07809351]
[1765557826390,0.00011665,89677.0,89676.0,0.12328151]
[1765557826731,0.00111665,89677.0,89676.0,0.12428151]
[1765557826934,0.00011665,89677.0,89676.0,0.058958]
[1765557827144,0.00011665,89677.0,89676.0,0.060958]
[1765557827325,0.00111665,89677.0,89676.0,0.064958]
[1765557827582,0.00111665,89677.0,89674.0,0.23418158]
[1765557827583,0.00011665,89677.0,89674.0,0.23418158]
[1765557827795,0.00011665,89677.0,89676.0,0.22602511]
[1765557828010,0.00111665,89677.0,89676.0,0.22802511]
[1765557828221,0.00011665,89677.0,89676.0,0.26821311]
[1765557828431,0.00011665,89677.0,89676.0,0.27121311]
[1765557828432,0.00111665,89677.0,89676.0,0.27121311]
[1765557828644,0.00111665,89677.0,89676.0,0.30729379]
[1765557829050,0.00111665,89677.0,89676.0,0.26410579]
[1765557829288,0.00111665,89677.0,89676.0,0.22602511]
[1765557829709,0.00011665,89677.0,89676.0,0.22302511]
[1765557829931,0.00011665,89677.0,89676.0,0.22602511]
[1765557830132,0.00011665,89677.0,89676.0,0.22302511]
[1765557830584,0.00111665,89677.0,89676.0,0.27121311]
[1765557830795,0.00011665,89677.0,89676.0,0.22502511]
[1765557831002,0.00011665,89677.0,89676.0,0.22302511]
[1765557831211,0.00011665,89677.0,89676.0,0.22602511]
[1765557831420,0.00011665,89677.0,89676.0,0.22302511]
[1765557831869,0.00011665,89677.0,89676.0,0.26621311]
[1765557832072,0.00011665,89677.0,89676.0,0.22302511]
[1765557832495,0.00011665,89677.0,89676.0,0.22402511]
[1765557832698,0.00111665,89677.0,89676.0,0.22702511]
[1765557833524,0.00011665,89677.0,89676.0,0.22402511]
[1765557833886,0.00011665,89677.0,89676.0,0.22602511]
[1765557834098,0.00011665,89677.0,89676.0,0.22702511]
[1765557834229,0.00011665,89677.0,89676.0,0.27021311]
[1765557835961,0.00011665,89677.0,89676.0,0.26921311]
[1765557836166,0.00011665,89677.0,89676.0,0.30201293]
[1765557836348,0.00011665,89677.0,89676.0,0.22702511]
[1765557837108,0.00011665,89677.0,89676.0,0.26721311]
[1765557837284,0.00011665,89677.0,89676.0,0.26621311]
[1765557837505,0.00011665,89677.0,89676.0,0.27021311]
[1765557837924,0.00011665,89677.0,89676.0,0.3202315]
[1765557838127,0.00011665,89677.0,89676.0,0.40132116]
[1765557838805,0.00011665,89677.0,89676.0,0.41916116]
[1765557839002,0.23406465,89719.0,89714.0,0.01114653]
[1765557839378,0.00161,89718.0,89716.0,0.22292567]
[1765557839507,0.00161,89718.0,89717.0,0.07133809]
[1765557839722,0.00038893,89719.0,89718.0,0.2229207]
[1765557840146,0.00138893,89719.0,89716.0,0.23407195]
[1765557840469,0.00038893,89719.0,89718.0,0.2229207]
[1765557841247,0.00038893,89719.0,89718.0,0.2661087]
[1765557841457,0.00038893,89719.0,89718.0,0.34287921]
[1765557841647,0.00712382,89746.0,89737.0,0.01114367]
[1765557841846,0.00011663,89746.0,89743.0,0.01114293]
[1765557842021,0.00011663,89746.0,89744.0,0.22285612]
[1765557842222,0.01114305,89742.0,89738.0,0.01114355]
[1765557842472,0.00161,89742.0,89735.0,0.01114392]
[1765557842692,0.01114404,89734.0,89729.0,0.01114466]
[1765557842904,0.01114355,89738.0,89735.0,0.01114392]
[1765557843069,0.01114355,89738.0,89734.0,0.23402439]
[1765557843275,0.00099999,89740.0,89738.0,0.22287102]
[1765557843498,0.00311663,89746.0,89745.0,0.22285364]
[1765557843756,0.00011663,89746.0,89745.0,0.27287203]
[1765557844047,0.00011663,89746.0,89745.0,0.26604164]
[1765557844260,0.00011663,89746.0,89745.0,0.32598269]
[1765557844461,0.00011663,89746.0,89745.0,0.28279469]
[1765557845170,0.00011663,89746.0,89745.0,0.32598269]
[1765557845380,0.00011663,89746.0,89745.0,0.37600108]
[1765557845585,0.00111663,89746.0,89745.0,0.37600108]
[1765557846003,0.00111663,89746.0,89745.0,0.66670108]
[1765557846004,0.00011663,89746.0,89745.0,0.66670108]
[1765557846208,0.00011663,89746.0,89745.0,0.66870108]
[1765557846418,0.0004,89770.0,89745.0,0.66870108]
[1765557846419,0.0004,89770.0,89769.0,0.22279406]
[1765557846629,0.0004,89770.0,89769.0,0.34707172]
[1765557847035,0.0004,89770.0,89767.0,0.2339372]
[1765557847252,0.0004,89770.0,89767.0,0.2771252]
[1765557847666,0.0004,89770.0,89769.0,0.043188]
[1765557847891,0.0004,89770.0,89769.0,0.045188]
[1765557848105,0.0004,89770.0,89769.0,0.09520639]
[1765557848257,0.0004,89770.0,89769.0,0.19607427]
[1765557848886,0.0004,89770.0,89769.0,0.15288627]
[1765557849580,0.0004,89770.0,89769.0,0.15088627]
[1765557849786,0.0004,89770.0,89769.0,0.10086788]
[1765557850182,0.0004,89770.0,89769.0,0.10186788]
[1765557850411,0.00201,89770.0,89769.0,0.10186788]
[1765557850626,0.00201,89770.0,89769.0,0.001]
[1765557850627,0.09828801,89770.0,89769.0,0.001]
[1765557850834,0.14145844,89770.0,89769.0,0.001]
[1765557851042,0.02037801,89770.0,89769.0,0.001]
[1765557851470,1.43215844,89770.0,89769.0,0.001]
[1765557851687,1.33387043,89768.0,89767.0,0.001]
[1765557851902,1.41339043,89768.0,89767.0,0.001]
[1765557852156,0.29231,89768.0,89767.0,0.001]
[1765557852344,0.01114057,89762.0,89758.0,0.01114106]
[1765557852555,0.01114131,89756.0,89752.0,0.01114181]
[1765557852788,0.00099999,89750.0,89738.0,0.01114355]
[1765557852993,0.01114317,89741.0,89738.0,0.00011663]
[1765557853169,0.00260999,89750.0,89738.0,0.23412954]
[1765557853170,0.0111428,89744.0,89738.0,0.23412954]
[1765557853379,0.2228685,89740.0,89738.0,0.00011663]
[1765557853583,0.00161,89740.0,89738.0,0.00011663]
[1765557854161,0.22447752,89740.0,89738.0,0.00011663]
[1765557855132,0.00161,89740.0,89738.0,0.00011663]
[1765557855462,0.30184193,89751.0,89746.0,0.01114255]
[1765557855658,0.02208,89762.0,89738.0,0.02850134]
[1765557855659,0.01114094,89759.0,89753.0,0.01114168]
[1765557855915,0.01114168,89753.0,89750.0,0.01114206]
[1765557856220,0.23397717,89753.0,89749.0,0.01114218]
[1765557856468,0.01114181,89752.0,89749.0,0.06128405]
[1765557856667,0.01114181,89752.0,89749.0,0.05014187]
[1765557856868,0.0111423,89748.0,89745.0,0.01114268]
[1765557857077,0.01114255,89746.0,89739.0,0.01114342]
[1765557857266,0.00099999,89750.0,89738.0,0.00400131]
[1765557857267,0.01114317,89741.0,89738.0,0.00400131]
[1765557857425,0.23400748,89741.0,89738.0,0.00011663]
[1765557857625,0.0111423,89748.0,89743.0,0.01114293]
[1765557857959,0.01214205,89750.0,89743.0,0.01114293]
[1765557857960,0.23398416,89750.0,89745.0,0.01114268]
[1765557858164,0.23498415,89750.0,89744.0,0.2339981]
[1765557858344,0.002,89753.0,89750.0,0.01114206]
[1765557858557,0.01114144,89755.0,89748.0,0.0111423]
[1765557858733,0.001,89752.0,89750.0,0.01114206]
[1765557859138,0.01114193,89751.0,89745.0,0.01114268]
[1765557859320,0.22286854,89739.0,89729.0,0.01114466]
[1765557859521,0.01114243,89747.0,89742.0,0.01114305]
[1765557859765,0.01114268,89745.0,89740.0,0.23400935]
[1765557859974,0.01114255,89746.0,89742.0,0.01114305]
[1765557860487,0.0111428,89744.0,89739.0,0.01114342]
[1765557860696,0.00161,89746.0,89743.0,0.01114293]
[1765557860846,0.00161,89746.0,89744.0,0.00502153]
[1765557861029,0.00161,89746.0,89743.0,0.23399998]
[1765557861229,0.00161,89746.0,89745.0,0.22285364]
[1765557861674,0.00161,89746.0,89743.0,0.23399998]
[1765557861876,0.01114317,89741.0,89738.0,0.00011663]
[1765557862077,0.23400744,89741.0,89738.0,0.00011663]
[1765557862282,0.22286854,89739.0,89738.0,0.00011663]
[1765557863132,0.01275317,89741.0,89738.0,0.00011663]
[1765557863335,0.01275317,89741.0,89738.0,0.01126018]
[1765557863336,0.00161,89741.0,89738.0,0.01126018]
[1765557863514,0.00161,89741.0,89738.0,0.01226018]
[1765557863913,0.01214205,89750.0,89743.0,0.01114293]
[1765557864126,0.01114218,89749.0,89743.0,0.01114293]
[1765557864329,0.62570394,89760.0,89739.0,0.04914481]
[1765557864532,0.25262605,89740.0,89738.0,0.00111663]
[1765557864711,0.11660043,89739.0,89738.0,0.00011663]
[1765557865079,0.22286605,89740.0,89738.0,0.00011663]
[1765557865285,0.22286357,89741.0,89738.0,0.00111663]
[1765557865434,0.23400674,89741.0,89738.0,0.00111663]
[1765557865756,0.01114317,89741.0,89738.0,0.00111663]
[1765557865902,0.23400638,89742.0,89738.0,0.00111663]
[1765557865903,0.01114305,89742.0,89738.0,0.00111663]
[1765557866099,0.22286839,89740.0,89738.0,0.00011663]
[1765557866550,0.001,89739.0,89738.0,0.00011663]
[1765557866926,0.07443,89739.0,89738.0,0.00011663]
[1765557867129,0.11960043,89739.0,89738.0,0.00011663]
[1765557867329,0.12121043,89739.0,89738.0,0.00011663]
[1765557867693,0.03237,89739.0,89738.0,0.00011663]
[1765557867980,0.07644,89739.0,89738.0,0.00011663]
[1765557868136,0.0847703,89739.0,89738.0,0.00011663]
[1765557868548,0.0867703,89739.0,89738.0,0.00011663]
[1765557868771,0.42064073,89739.0,89738.0,0.00011663]
[1765557869015,0.42164073,89739.0,89738.0,0.00011663]
[1765557869150,0.3784703,89739.0,89738.0,0.00011663]
[1765557869356,0.3056403,89739.0,89738.0,0.00011663]
[1765557869585,0.3056403,89739.0,89738.0,0.00500971]
[1765557869586,0.00461,89739.0,89738.0,0.00500971]
[1765557869755,0.003,89739.0,89738.0,0.04853596]
[1765557869962,0.003,89739.0,89738.0,0.05233778]
[1765557870168,0.001,89739.0,89738.0,0.05233778]
[1765557870462,0.001,89739.0,89738.0,0.14722365]
[1765557870892,0.001,89739.0,89738.0,0.43792365]
[1765557871111,0.22277772,89776.0,89757.0,0.01114119]
[1765557871112,0.00139999,89770.0,89757.0,0.01114119]
[1765557871409,0.01114032,89764.0,89759.0,0.01114094]
[1765557871651,0.01114044,89763.0,89758.0,0.01114106]
[1765557871822,0.01114044,89763.0,89756.0,0.23396595]
[1765557872038,0.01113982,89768.0,89758.0,0.22282136]
[1765557872256,0.01114032,89764.0,89759.0,0.01114094]
[1765557872449,0.01114019,89765.0,89760.0,0.01114081]
[1765557872691,0.00161,89768.0,89762.0,0.01114057]
[1765557872893,0.01114044,89763.0,89760.0,0.01114081]
[1765557873145,0.01114044,89763.0,89758.0,0.01114106]
[1765557873347,0.01114044,89763.0,89759.0,0.01114094]
[1765557873528,0.00161,89768.0,89765.0,0.01114019]
[1765557873768,0.00161,89768.0,89764.0,0.01114032]
[1765557873986,0.01114019,89765.0,89759.0,0.01114094]
[1765557874236,0.00161,89768.0,89765.0,0.01114019]
[1765557874636,0.00161,89768.0,89766.0,0.2228015]
[1765557874849,0.00161,89768.0,89765.0,0.01114019]
[1765557874983,0.00261,89768.0,89766.0,0.2228015]
[1765557875389,0.00161,89768.0,89766.0,0.2228015]
[1765557875630,0.00161,89768.0,89758.0,0.01114106]
[1765557875631,0.01114044,89763.0,89758.0,0.01114106]
[1765557875828,0.23395121,89763.0,89760.0,0.02562463]
[1765557876031,0.01114069,89761.0,89757.0,0.01114119]
[1765557876496,0.01114081,89760.0,89757.0,0.01114119]
[1765557876697,0.01114044,89763.0,89760.0,0.01114081]
[1765557876818,0.01114057,89762.0,89758.0,0.01114106]
[1765557877012,0.01114057,89762.0,89758.0,0.0633688]
[1765557877266,0.01114044,89763.0,89760.0,0.01114081]
[1765557877464,0.01114007,89766.0,89761.0,0.2339546]
[1765557877692,0.01114019,89765.0,89761.0,0.01114069]
[1765557877858,0.00161,89768.0,89764.0,0.22280647]
[1765557878163,0.00161,89768.0,89766.0,0.2228015]
[1765557878992,0.0004,89770.0,89769.0,0.22279406]
[1765557880655,0.0024,89770.0,89769.0,0.22279406]
[1765557881608,0.0024,89770.0,89769.0,0.26598206]
[1765557882801,0.0014,89770.0,89769.0,0.26598206]
[1765557883024,0.0014,89770.0,89769.0,0.34271096]
[1765557883196,0.0014,89770.0,89769.0,0.34371096]
[1765557883420,0.0004,89770.0,89769.0,0.34371096]
[1765557883624,0.0004,89770.0,89769.0,0.34471096]
[1765557884001,0.0004,89770.0,89769.0,0.30052296]
[1765557884201,0.0004,89770.0,89769.0,0.34371096]
[1765557884424,0.0004,89770.0,89769.0,0.34471096]
[1765557884671,0.0004,89770.0,89769.0,0.34371096]
[1765557885053,0.0004,89770.0,89769.0,0.34271096]
[1765557885559,0.0004,89770.0,89769.0,0.34471096]
[1765557885758,0.0004,89770.0,89769.0,0.34271096]
[1765557885901,0.0004,89770.0,89769.0,0.29952296]
[1765557886095,0.0004,89770.0,89769.0,0.34471096]
[1765557886406,0.0004,89770.0,89769.0,0.34671096]
[1765557886610,0.0004,89770.0,89769.0,0.34471096]
[1765557886759,0.0004,89770.0,89769.0,0.34271096]
[1765557886973,0.0004,89770.0,89769.0,0.30252296]
[1765557887171,0.0004,89770.0,89769.0,0.34571096]
[1765557887555,0.0004,89770.0,89769.0,0.26898206]
[1765557887761,0.0004,89770.0,89769.0,0.003]
[1765557887962,0.07484,89770.0,89769.0,0.003]
[1765557888187,0.00201,89770.0,89769.0,0.003]
[1765557888396,0.0004,89770.0,89769.0,0.003]
[1765557888622,0.0004,89770.0,89769.0,0.32206397]
[1765557888801,0.0004,89770.0,89769.0,0.31700045]
[1765557888998,0.0004,89770.0,89769.0,0.22479406]
[1765557889276,0.0004,89770.0,89769.0,0.22379406]
[1765557889478,0.0004,89770.0,89760.0,0.23395493]
[1765557889479,0.03144,89770.0,89760.0,0.23395493]
[1765557889609,0.00300999,89770.0,89765.0,0.22280398]
[1765557889821,0.01414956,89770.0,89769.0,0.001]
[1765557890021,0.0004,89770.0,89769.0,0.001]
[1765557890384,0.0004,89770.0,89769.0,0.22884629]
[1765557890507,0.0004,89770.0,89769.0,0.22279406]
[1765557890710,0.00201,89770.0,89769.0,0.22279406]
[1765557892274,0.01314957,89770.0,89767.0,0.01113995]
[1765557892478,0.23393636,89768.0,89764.0,0.01114032]
[1765557892685,0.01114144,89755.0,89752.0,0.01114181]
[1765557892894,0.01114094,89759.0,89753.0,0.23397545]
[1765557893110,0.01114119,89757.0,89752.0,0.01114181]
[1765557893303,0.01114193,89751.0,89747.0,0.23398967]
[1765557893455,0.01114218,89749.0,89745.0,0.01114268]
[1765557893666,0.0111423,89748.0,89742.0,0.01114305]
[1765557893881,0.0111423,89748.0,89737.0,0.22287273]
[1765557893882,0.22285612,89744.0,89737.0,0.22287273]
[1765557894207,0.04255999,89750.0,89737.0,0.00011663]
[1765557894208,0.0111433,89740.0,89737.0,0.00011663]
[1765557894436,0.23401174,89740.0,89737.0,0.00011663]
[1765557894858,0.0111433,89740.0,89737.0,0.0112603]
[1765557895057,0.01114317,89741.0,89737.0,0.0112603]
[1765557895058,0.01114305,89742.0,89739.0,0.01114342]
[1765557895263,0.23400139,89744.0,89739.0,0.01114342]
[1765557895264,0.0111428,89744.0,89741.0,0.01114317]
[1765557895665,0.25462354,89747.0,89741.0,0.01114317]
[1765557895666,0.01114255,89746.0,89742.0,0.01114305]
[1765557895854,0.22286961,89739.0,89737.0,0.00011663]
[1765557896225,0.001,89742.0,89738.0,0.01114355]
[1765557896426,0.01214305,89742.0,89737.0,0.00011663]
[1765557896638,0.01114293,89743.0,89739.0,0.01114342]
[1765557897059,0.01114305,89742.0,89738.0,0.01114355]
[1765557897264,0.01114255,89746.0,89742.0,0.01114305]
[1765557897479,0.01114268,89745.0,89741.0,0.01114317]
[1765557897679,0.02063,89747.0,89744.0,0.22285612]
[1765557897831,0.03177243,89747.0,89744.0,0.0111428]
[1765557898035,0.22287102,89738.0,89728.0,0.01114479]
[1765557898247,0.22287102,89738.0,89730.0,0.01114454]
[1765557898435,0.22287102,89738.0,89731.0,0.01114442]
[1765557898638,0.29274102,89738.0,89717.0,0.01114615]
[1765557898972,0.62661145,89738.0,89719.0,0.01114591]
[1765557899096,0.62661145,89738.0,89721.0,0.23405867]
[1765557899474,0.58344102,89738.0,89728.0,0.01114479]
[1765557899634,0.0111433,89740.0,89733.0,0.23402684]
[1765557899840,0.001,89738.0,89734.0,0.01114404]
[1765557900378,0.003,89738.0,89731.0,0.01114442]
[1765557900592,0.002,89738.0,89735.0,0.23402094]
[1765557901192,0.002,89738.0,89731.0,0.23403205]
[1765557901383,0.002,89738.0,89724.0,0.01114529]
[1765557901384,0.07187,89738.0,89724.0,0.01114529]
[1765557901727,0.07187,89738.0,89722.0,0.01114553]
[1765557901942,0.07187,89738.0,89709.0,0.03983919]
[1765557901943,0.36057,89738.0,89710.0,0.22293921]
[1765557902126,0.01114628,89716.0,89711.0,0.0111469]
[1765557902328,0.0111464,89715.0,89711.0,0.0111469]
[1765557902548,0.00011641,89716.0,89713.0,0.01114665]
[1765557902769,0.00011641,89716.0,89714.0,0.22553048]
[1765557902980,0.00011641,89716.0,89714.0,0.22293064]
[1765557903235,0.00011641,89716.0,89715.0,0.12313275]
[1765557903442,0.00011641,89716.0,89715.0,0.17315114]
[1765557905025,0.00011641,89716.0,89715.0,0.1754033]
[1765557905227,0.00011641,89716.0,89714.0,0.22493064]
[1765557905228,0.00011641,89716.0,89714.0,0.22293064]
[1765557905428,0.00011641,89716.0,89715.0,0.003]
[1765557905600,0.00011641,89716.0,89715.0,0.006]
[1765557906012,0.00011641,89716.0,89715.0,0.003]
[1765557906213,0.00011641,89716.0,89714.0,0.22293064]
[1765557906415,0.00011641,89716.0,89714.0,0.22593064]
[1765557906615,0.00011641,89716.0,89715.0,0.001]
[1765557906897,0.00011641,89716.0,89714.0,0.2956851]
[1765557907142,0.00011641,89716.0,89715.0,0.05382076]
[1765557907295,0.00011641,89716.0,89715.0,0.09700876]
[1765557907729,0.00011641,89716.0,89715.0,0.05382076]
[1765557907903,0.00011641,89716.0,89715.0,0.18532481]
[1765557908352,0.00011641,89716.0,89715.0,0.14313681]
[1765557908554,0.00011641,89716.0,89715.0,0.001]
[1765557908819,0.00172641,89716.0,89715.0,0.001]
[1765557909543,1.07159641,89716.0,89715.0,0.001]
[1765557909724,0.01114876,89696.0,89692.0,0.01114926]
[1765557909880,0.01114901,89694.0,89691.0,0.01114939]
[1765557910084,0.01275901,89694.0,89690.0,0.01114951]
[1765557910280,0.00161,89694.0,89691.0,0.23413577]
[1765557910681,0.01114765,89705.0,89695.0,0.22297786]
[1765557910904,0.01114864,89697.0,89693.0,0.01114914]
[1765557911105,0.02063,89694.0,89691.0,0.01114939]
[1765557911364,0.01114926,89692.0,89685.0,0.01115013]
[1765557911554,0.00161,89692.0,89690.0,0.01114951]
[1765557911771,0.00161,89692.0,89690.0,0.23413815]
[1765557913116,0.001,89694.0,89693.0,0.22298284]
[1765557913566,0.00099999,89700.0,89699.0,0.22296792]
[1765557914163,0.04317043,89708.0,89704.0,0.23410086]
[1765557914310,0.0111474,89707.0,89704.0,0.01114777]
[1765557914514,0.02831,89705.0,89698.0,0.01114852]
[1765557914722,0.01114789,89703.0,89699.0,0.01114839]
[1765557914884,0.01114814,89701.0,89697.0,0.01114864]
[1765557915091,0.01114827,89700.0,89697.0,0.01114864]
[1765557915380,0.23412503,89696.0,89690.0,0.01114951]
[1765557915593,0.01114939,89691.0,89686.0,0.01115001]
[1765557915823,0.01114951,89690.0,89687.0,0.01114988]
[1765557916027,0.01275951,89690.0,89687.0,0.01114988]
[1765557916234,0.00161,89690.0,89687.0,0.01114988]
[1765557916448,0.00161,89690.0,89688.0,0.22299527]